fUST/lending_fUST_20251220
["ID","MTS","AMOUNT","RATE_DAILY","PERIOD"]
[399210870,1766171957806,-207.36495,0.00032877,31]
[399210871,1766171957845,-207.36495,0.00032877,31]
[399210872,1766171957870,-207.36495,0.00032877,31]
[399210873,1766171957894,-207.36495,0.00032877,31]
[399210874,1766171957918,-207.36495,0.00032877,31]
[399210875,1766171957942,-207.36495,0.00032877,31]
[399210876,1766171957965,-207.36495,0.00032877,31]
[399210877,1766171957989,-207.36495,0.00032877,31]
[399210878,1766171958015,-207.36495,0.00032877,31]
[399210879,1766171958041,-207.36495,0.00032877,31]
[399210880,1766171958065,-207.36495,0.00032877,31]
[399210881,1766171958092,-207.36495,0.00032877,31]
[399210882,1766171958117,-207.36495,0.00032877,31]
[399210883,1766171958140,-207.36495,0.00032877,31]
[399210884,1766171958166,-151.0,0.00032877,31]
[399210885,1766171958191,-151.0,0.00032877,31]
[399210886,1766171958215,-151.0,0.00032877,31]
[399210887,1766171958241,-233.032994,0.00032877,31]
[399210888,1766171958376,-202.876426,0.00032877,31]
[399210889,1766171958403,-202.876426,0.00032877,31]
[399210890,1766171958428,-202.876426,0.00032877,31]
[399210891,1766171958454,-202.876426,0.00032877,31]
[399210892,1766171958477,-202.876426,0.00032877,31]
[399210893,1766171958500,-202.876426,0.00032877,31]
[399210894,1766171958525,-202.876426,0.00032877,31]
[399210895,1766171958550,-202.876426,0.00032877,31]
[399210896,1766171958576,-202.876426,0.00032877,31]
[399210897,1766171958601,-202.876426,0.00032877,31]
[399210898,1766171958625,-202.876426,0.00032877,31]
[399210899,1766171958648,-202.876426,0.00032877,31]
[399210900,1766171958671,-202.876426,0.00032877,31]
[399210901,1766171958696,-202.876426,0.00032877,31]
[399210902,1766171958719,-202.876426,0.00032877,31]
[399210903,1766171958743,-202.876426,0.00032877,31]
[399210904,1766171958766,-202.876426,0.00032877,31]
[399210905,1766171958788,-202.876426,0.00032877,31]
[399210906,1766171958812,-202.876426,0.00032877,31]
[399210907,1766171958838,-202.876418,0.00032877,31]
[399210908,1766171958861,-745.985638,0.00032877,31]
[399210909,1766171958886,-745.985638,0.00032877,31]
[399210910,1766171958912,-745.985638,0.00032877,31]
[399210911,1766171958936,-745.985638,0.00032877,31]
[399210912,1766171958960,-745.985638,0.00032877,31]
[399210913,1766171958986,-745.985638,0.00032877,31]
[399210914,1766171959013,-745.985638,0.00032877,31]
[399210915,1766171959040,-745.985638,0.00032877,31]
[399210916,1766171959064,-745.985638,0.00032877,31]
[399210917,1766171959091,-745.985638,0.00032877,31]
[399210918,1766171959116,-745.985638,0.00032877,31]
[399210919,1766171959139,-745.985638,0.00032877,31]
[399210920,1766171959162,-745.985638,0.00032877,31]
[399210921,1766171959186,-745.985638,0.00032877,31]
[399210922,1766171959215,-745.985638,0.00032877,31]
[399210923,1766171959251,-745.985638,0.00032877,31]
[399210924,1766171959282,-745.985638,0.00032877,31]
[399210925,1766171959317,-745.985638,0.00032877,31]
[399210926,1766171959350,-745.985638,0.00032877,31]
[399210927,1766171959384,-745.98563598,0.00032877,31]
[399210928,1766171959417,-151.0,0.00032877,31]
[399210929,1766171959449,-151.0,0.00032877,31]
[399210930,1766171959481,-151.0,0.00032877,31]
[399210931,1766171959510,-285.087371,0.00032877,31]
[399210932,1766171959539,-151.0,0.00032877,31]
[399210933,1766171959571,-151.0,0.00032877,31]
[399210934,1766171959606,-151.0,0.00032877,31]
[399210935,1766171959640,-151.0,0.00032877,31]
[399210936,1766171959666,-151.0,0.00032877,31]
[399210937,1766171959695,-151.0,0.00032877,31]
[399210938,1766171959726,-151.0,0.00032877,31]
[399210939,1766171959753,-151.0,0.00032877,31]
[399210940,1766171959783,-151.0,0.00032877,31]
[399210941,1766171959809,-151.0,0.00032877,31]
[399210942,1766171959835,-151.0,0.00032877,31]
[399210943,1766171959861,-151.0,0.00032877,31]
[399210944,1766171959888,-151.0,0.00032877,31]
[399210945,1766171959918,-151.0,0.00032877,31]
[399210946,1766171959946,-151.0,0.00032877,31]
[399210947,1766171959973,-151.0,0.00032877,31]
[399210948,1766171960001,-151.0,0.00032877,31]
[399210949,1766171960029,-151.0,0.00032877,31]
[399210950,1766171960060,-282.0,0.00032877,31]
[399210951,1766171960089,-151.0,0.00032877,31]
[399210952,1766171960119,-151.211325,0.00032877,31]
[399210953,1766171960149,-218.19,0.00032877,10]
[399210954,1766171960180,-218.19,0.00032877,10]
[399210955,1766171960210,-872.77,0.00032877,10]
[399210956,1766171960345,-658.61332312,0.00032925,120]
[399210957,1766171960370,-2657.66385376,0.00033,30]
[399210958,1766171960394,-226.24052528,0.0003315,30]
[399210959,1766171960418,-161.0,0.00033205,59]
[399210960,1766171960442,-4099.03,0.000333,14]
[399210961,1766171960470,-1000.0,0.00034707,30]
[399210962,1766171960498,-1000.0,0.00034707,30]
[399210963,1766171960525,-707.19955187,0.00034925,120]
[399210964,1766171960549,-490.2,0.00035616,28]
[399210965,1766171960574,-614.1,0.00035616,17]
[399210966,1766171960597,-500.0,0.00035616,7]
[399210967,1766171960620,-500.0,0.00035616,7]
[399210968,1766171960643,-500.0,0.00035616,7]
[399210969,1766171960665,-500.0,0.00035616,7]
[399210970,1766171960688,-519.62260863,0.00035616,7]
[399210971,1766171960712,-500.0,0.00035616,7]
[399210972,1766171960736,-500.0,0.00035616,7]
[399210973,1766171960758,-469.73783341,0.00035616,7]
[399210974,1766171960782,-500.0,0.00035616,7]
[399210975,1766171960806,-500.0,0.00035616,7]
[399210976,1766171960830,-500.0,0.00035616,7]
[399210977,1766171960854,-500.0,0.00035616,7]
[399210978,1766171960877,-500.0,0.00035616,7]
[399210979,1766171960902,-500.0,0.00035616,7]
[399210980,1766171960925,-500.0,0.00035616,7]
[399210981,1766171960948,-500.0,0.00035616,7]
[399210982,1766171960973,-500.0,0.00035616,7]
[399210983,1766171961003,-500.0,0.00035616,7]
[399210984,1766171961051,-500.0,0.00035616,7]
[399210985,1766171961106,-500.0,0.00035616,7]
[399210986,1766171961154,-500.0,0.00035616,7]
[399210987,1766171961204,-500.0,0.00035616,7]
[399210988,1766171961258,-500.0,0.00035616,7]
[399210989,1766171961310,-227.6405007,0.00035616,7]
[399210990,1766171961361,-500.0,0.00035616,7]
[399210991,1766171961386,-500.0,0.00035616,7]
[399210992,1766171961410,-500.0,0.00035616,7]
[399210993,1766171961435,-399.48067512,0.0003672,36]
[399210994,1766171961459,-755.78578062,0.00036925,120]
[399210995,1766171961485,-1000.0,0.00038178,30]
[399210996,1766171961511,-1000.0,0.00038178,30]
[399210997,1766171961536,-579.0,0.00038178,30]
[399210998,1766171961564,-3872.22,0.00038356,120]
[399210999,1766171961593,-804.37200938,0.00038925,120]
[399211000,1766171961618,-24629.72345912,0.00039,120]
[399211001,1766171961646,-1041.66666667,0.00039,30]
[399211002,1766171961671,-151.0,0.00039,120]
[399211003,1766171961697,-500.0,0.00039726,15]
[399211004,1766171961724,-500.0,0.00039726,15]
[399211005,1766171961751,-500.0,0.00039726,15]
[399211006,1766171961777,-500.0,0.00039726,15]
[399211007,1766171961803,-500.0,0.00039726,15]
[399211008,1766171961834,-500.0,0.00039726,15]
[399211009,1766171961860,-500.0,0.00039726,15]
[399211010,1766171961886,-500.0,0.00039726,15]
[399211011,1766171961911,-500.0,0.00039726,15]
[399211012,1766171961936,-500.0,0.00039726,15]
[399211013,1766171961962,-500.0,0.00039726,15]
[399211014,1766171961986,-500.0,0.00039726,15]
[399211015,1766171962011,-500.0,0.00039726,15]
[399211016,1766171962040,-500.0,0.00039726,15]
[399211017,1766171962066,-500.0,0.00039726,15]
[399211018,1766171962096,-500.0,0.00039726,15]
[399211019,1766171962124,-500.0,0.00039726,15]
[399211020,1766171962152,-552.69746486,0.00039726,15]
[399211021,1766171962178,-500.0,0.00039726,15]
[399211022,1766171962204,-500.0,0.00039726,15]
[399211023,1766171962230,-500.0,0.00039726,15]
[399211024,1766171962259,-500.0,0.00039726,15]
[399211025,1766171962285,-557.22118922,0.00039726,15]
[399211026,1766171962311,-557.22118922,0.00039726,15]
[399211027,1766171962338,-557.22118922,0.00039726,15]
[399211028,1766171962363,-557.22118922,0.00039726,15]
[399211029,1766171962388,-557.22118922,0.00039726,15]
[399211030,1766171962414,-557.22118922,0.00039726,15]
[399211031,1766171962440,-557.22118922,0.00039726,15]
[399211032,1766171962465,-557.22118922,0.00039726,15]
[399211033,1766171962490,-557.22118922,0.00039726,15]
[399211034,1766171962515,-557.22118922,0.00039726,15]
[399211035,1766171962539,-557.22118922,0.00039726,15]
[399211036,1766171962564,-557.22118922,0.00039726,15]
[399211037,1766171962590,-557.22118922,0.00039726,15]
[399211038,1766171962615,-557.22118922,0.00039726,15]
[399211039,1766171962638,-557.22118922,0.00039726,15]
[399211040,1766171962666,-557.22118922,0.00039726,15]
[399211041,1766171962786,-557.22118922,0.00039726,15]
[399211042,1766171962813,-557.22118922,0.00039726,15]
[399211043,1766171962840,-557.22118922,0.00039726,15]
[399211044,1766171962866,-557.22118922,0.00039726,15]
[399211045,1766171962893,-557.22118922,0.00039726,15]
[399211046,1766171962919,-557.22118922,0.00039726,15]
[399211047,1766171962945,-557.22118922,0.00039726,15]
[399211048,1766171962972,-557.22118922,0.00039726,15]
[399211049,1766171962997,-557.22118922,0.00039726,15]
[399211050,1766171963024,-557.22118922,0.00039726,15]
[399211051,1766171963055,-557.22118922,0.00039726,15]
[399211052,1766171963083,-557.22118922,0.00039726,15]
[399211053,1766171963111,-557.22118922,0.00039726,15]
[399211054,1766171963139,-557.22118922,0.00039726,15]
[399211055,1766171963167,-557.22118922,0.00039726,15]
[399211056,1766171963194,-557.22118922,0.00039726,15]
[399211057,1766171963221,-557.22118922,0.00039726,15]
[399211058,1766171963248,-557.22118922,0.00039726,15]
[399211059,1766171963276,-557.22118922,0.00039726,15]
[399211060,1766171963304,-557.22118922,0.00039726,15]
[399211061,1766171963330,-557.22118922,0.00039726,15]
[399211062,1766171963356,-557.22118922,0.00039726,15]
[399211063,1766171963383,-557.22118922,0.00039726,15]
[399211064,1766171963411,-557.22118922,0.00039726,15]
[399211065,1766171963436,-557.22118922,0.00039726,15]
[399211066,1766171963463,-557.22118922,0.00039726,15]
[399211067,1766171963490,-557.22118922,0.00039726,15]
[399211068,1766171963517,-557.22118922,0.00039726,15]
[399211069,1766171963546,-557.22118922,0.00039726,15]
[399211070,1766171963578,-557.22118922,0.00039726,15]
[399211071,1766171963608,-557.22118922,0.00039726,15]
[399211072,1766171963638,-557.22118922,0.00039726,15]
[399211073,1766171963669,-557.22118922,0.00039726,15]
[399211074,1766171963697,-558.47807913,0.00039726,15]
[399211075,1766171963724,-558.47807913,0.00039726,15]
[399211076,1766171963752,-558.47807913,0.00039726,15]
[399211077,1766171963778,-558.47807913,0.00039726,15]
[399211078,1766171963805,-558.47807913,0.00039726,15]
[399211079,1766171963834,-558.47807913,0.00039726,15]
[399211080,1766171963860,-558.47807913,0.00039726,15]
[399211081,1766171963888,-558.47807913,0.00039726,15]
[399211082,1766171963915,-558.47807913,0.00039726,15]
[399211083,1766171963942,-558.47807913,0.00039726,15]
[399211084,1766171963970,-558.47807913,0.00039726,15]
[399211085,1766171963998,-558.47807913,0.00039726,15]
[399211086,1766171964028,-558.47807913,0.00039726,15]
[399211087,1766171964054,-558.47807913,0.00039726,15]
[399211088,1766171964082,-558.47807913,0.00039726,15]
[399211089,1766171964110,-558.47807913,0.00039726,15]
[399211090,1766171964137,-558.47807913,0.00039726,15]
[399211091,1766171964164,-558.47807913,0.00039726,15]
[399211092,1766171964190,-558.47807913,0.00039726,15]
[399211093,1766171964215,-154.64312354,0.0004,5]
[399211094,1766171964239,-1000.0,0.00040141,15]
[399211095,1766171964265,-852.95823813,0.00040925,120]
[399211096,1766171964292,-282.412744,0.00041096,120]
[399211097,1766171964316,-282.412744,0.00041096,120]
[399211098,1766171964341,-282.412744,0.00041096,120]
[399211099,1766171964366,-282.412744,0.00041096,120]
[399211100,1766171964391,-282.412744,0.00041096,120]
[399211101,1766171964414,-282.412744,0.00041096,120]
[399211102,1766171964438,-282.412744,0.00041096,120]
[399211103,1766171964467,-282.412744,0.00041096,120]
[399211104,1766171964490,-282.412744,0.00041096,120]
[399211105,1766171964514,-282.412744,0.00041096,120]
[399211106,1766171964537,-282.412744,0.00041096,120]
[399211107,1766171964561,-282.412744,0.00041096,120]
[399211108,1766171964584,-282.412744,0.00041096,120]
[399211109,1766171964608,-282.412744,0.00041096,120]
[399211110,1766171964631,-282.412744,0.00041096,120]
[399211111,1766171964655,-282.412744,0.00041096,120]
[399211112,1766171964680,-282.412744,0.00041096,120]
[399211113,1766171964704,-282.412744,0.00041096,120]
[399211114,1766171964730,-282.412744,0.00041096,120]
[399211115,1766171964752,-282.412754,0.00041096,120]
[399211116,1766171964776,-817.0,0.00041096,74]
[399211117,1766171964799,-1023.5,0.00041096,84]
[399211118,1766171964824,-151.62,0.00041634,120]
[399211119,1766171964849,-151.62,0.00041734,120]
[399211120,1766171964873,-151.62,0.00041834,120]
[399211121,1766171964898,-151.62,0.00041934,120]
[399211122,1766171964923,-1000.0,0.00041996,60]
[399211123,1766171965040,-1000.0,0.00041996,60]
[399211124,1766171965069,-1000.0,0.00041996,60]
[399211125,1766171965100,-4099.03,0.00042,14]
[399211126,1766171965127,-151.62,0.00042034,120]
[399211127,1766171965154,-151.62,0.00042134,120]
[399211128,1766171965184,-151.62,0.00042234,120]
[399211129,1766171965213,-151.62,0.00042334,120]
[399211130,1766171965241,-151.64464496,0.00042434,120]
[399211131,1766171965271,-901.54446689,0.00042925,120]
[399211132,1766171965296,-34856.5499,0.0004322,30]
[399211133,1766171965322,-23757.0185287,0.000435,120]
[399211134,1766171965351,-411.0,0.000438,90]
[399211135,1766171965374,-1000.0,0.000438,90]
[399211136,1766171965399,-3872.22,0.00043835,120]
[399211137,1766171965423,-248.65537964,0.00043994,5]
[399211138,1766171965447,-400.0,0.00044,120]
[399211139,1766171965470,-1041.66666667,0.00044,120]
[399211140,1766171965500,-950.13069564,0.00044925,120]
[399211141,1766171965527,-7097.19,0.00045,120]
[399211142,1766171965552,-1555.86071232,0.0004524,7]
[399211143,1766171965581,-1000.0,0.00046195,120]
[399211144,1766171965607,-1000.0,0.00046195,120]
[399211145,1766171965631,-728.0,0.00046195,120]
[399211146,1766171965654,-314.49,0.000465,30]
[399211147,1766171965681,-998.7169244,0.00046925,120]
[399211148,1766171965706,-1041.66666667,0.00047,120]
[399211149,1766171965731,-7097.19,0.0004725,120]
[399211150,1766171965753,-399.0,0.0004855,120]
[399211151,1766171965779,-1047.30315315,0.00048925,120]
[399211152,1766171965803,-3872.22,0.00049315,120]
[399211153,1766171965830,-500.0,0.00049315,120]
[399211154,1766171965853,-500.0,0.00049315,120]
[399211155,1766171965879,-500.0,0.00049315,120]
[399211156,1766171965905,-583.42976607,0.00049315,120]
[399211157,1766171965929,-500.0,0.00049315,120]
[399211158,1766171965953,-500.0,0.00049315,120]
[399211159,1766171965978,-500.0,0.00049315,120]
[399211160,1766171966003,-500.0,0.00049315,120]
[399211161,1766171966030,-500.0,0.00049315,120]
[399211162,1766171966054,-500.0,0.00049315,120]
[399211163,1766171966082,-500.0,0.00049315,120]
[399211164,1766171966109,-453.71441845,0.00049315,120]
[399211165,1766171966135,-500.0,0.00049315,120]
[399211166,1766171966160,-500.0,0.00049315,120]
[399211167,1766171966185,-500.0,0.00049315,120]
[399211168,1766171966208,-500.0,0.00049315,120]
[399211169,1766171966232,-500.0,0.00049315,120]
[399211170,1766171966257,-500.0,0.00049315,120]
[399211171,1766171966283,-500.0,0.00049315,120]
[399211172,1766171966307,-500.0,0.00049315,120]
[399211173,1766171966333,-500.0,0.00049315,120]
[399211174,1766171966356,-500.0,0.00049315,120]
[399211175,1766171966381,-500.0,0.00049315,120]
[399211176,1766171966406,-500.0,0.00049315,120]
[399211177,1766171966430,-500.0,0.00049315,120]
[399211178,1766171966455,-500.0,0.00049315,120]
[399211179,1766171966479,-500.0,0.00049315,120]
[399211180,1766171966504,-500.0,0.00049315,120]
[399211181,1766171966530,-7097.19,0.00049613,120]
[399211182,1766171966561,-469920.32089731,0.0005,120]
[399211183,1766171966593,-1095.88938191,0.00050925,120]
[399211184,1766171966616,-4099.03,0.000515,14]
[399211185,1766171966641,-7097.19,0.00052093,120]
[399211186,1766171966664,-500.0,0.000522,120]
[399211187,1766171966687,-400.0,0.000529,120]
[399211188,1766171966711,-1144.47561066,0.00052925,120]
[399211189,1766171966734,-1000.37524453,0.0005358,120]
[399211190,1766171966757,-500.0,0.0005379,60]
[399211191,1766171966780,-150.0,0.000547,120]
[399211192,1766171966807,-500.0,0.00054794,120]
[399211193,1766171966831,-500.0,0.00054794,120]
[399211194,1766171966854,-500.0,0.00054794,120]
[399211195,1766171966879,-500.0,0.00054794,120]
[399211196,1766171966902,-501.36635523,0.00054794,120]
[399211197,1766171966925,-501.22285886,0.00054794,120]
[399211198,1766171966949,-500.0,0.00054794,120]
[399211199,1766171966974,-502.72688629,0.00054794,120]
[399211200,1766171967011,-500.0,0.00054794,120]
[399211201,1766171967039,-500.0,0.00054794,120]
[399211202,1766171967189,-500.0,0.00054794,120]
[399211203,1766171967216,-500.0,0.00054794,120]
[399211204,1766171967241,-501.57768902,0.00054794,30]
[399211205,1766171967266,-500.0,0.00054794,120]
[399211206,1766171967292,-500.0,0.00054794,120]
[399211207,1766171967316,-500.0,0.00054794,120]
[399211208,1766171967342,-503.03998293,0.00054794,120]
[399211209,1766171967366,-500.41756334,0.00054794,12]
[399211210,1766171967390,-500.75993926,0.00054794,120]
[399211211,1766171967415,-500.0,0.00054794,120]
[399211212,1766171967438,-150.68034733,0.00054794,120]
[399211213,1766171967463,-500.0,0.00054794,120]
[399211214,1766171967488,-500.0,0.00054794,120]
[399211215,1766171967517,-541.62,0.00054794,120]
[399211216,1766171967551,-500.0,0.00054794,120]
[399211217,1766171967577,-200.0,0.00054794,120]
[399211218,1766171967604,-507.27733449,0.00054794,120]
[399211219,1766171967629,-500.0,0.00054794,120]
[399211220,1766171967653,-564.79907,0.00054794,120]
[399211221,1766171967680,-500.0,0.00054794,120]
[399211222,1766171967705,-189.37050767,0.00054794,120]
[399211223,1766171967729,-833.42,0.00054794,120]
[399211224,1766171967754,-500.0,0.00054794,120]
[399211225,1766171967778,-500.0,0.00054794,120]
[399211226,1766171967803,-500.0,0.00054794,120]
[399211227,1766171967828,-1198.0,0.00054794,120]
[399211228,1766171967859,-500.0,0.00054794,120]
[399211229,1766171967884,-500.0,0.00054794,120]
[399211230,1766171967913,-500.0,0.00054794,120]
[399211231,1766171967941,-500.0,0.00054794,120]
[399211232,1766171967967,-500.0,0.00054794,120]
[399211233,1766171967995,-500.0,0.00054794,120]
[399211234,1766171968021,-500.0,0.00054794,120]
[399211235,1766171968052,-500.0,0.00054794,120]
[399211236,1766171968082,-501.73796051,0.00054794,120]
[399211237,1766171968111,-1231.93,0.00054794,120]
[399211238,1766171968139,-300.0,0.00054794,10]
[399211239,1766171968165,-500.0,0.00054794,120]
[399211240,1766171968191,-501.0,0.00054794,120]
[399211241,1766171968217,-500.0,0.00054794,120]
[399211242,1766171968243,-500.0,0.00054794,120]
[399211243,1766171968271,-151.0,0.00054794,120]
[399211244,1766171968298,-500.0,0.00054794,120]
[399211245,1766171968325,-500.0,0.00054794,120]
[399211246,1766171968357,-968.29,0.00054794,120]
[399211247,1766171968385,-500.0,0.00054794,120]
[399211248,1766171968411,-500.0,0.00054794,120]
[399211249,1766171968439,-500.0,0.00054794,120]
[399211250,1766171968468,-500.0,0.00054794,120]
[399211251,1766171968496,-500.0,0.00054794,3]
[399211252,1766171968525,-500.0,0.00054794,120]
[399211253,1766171968551,-500.0,0.00054794,120]
[399211254,1766171968581,-500.0,0.00054794,120]
[399211255,1766171968609,-1088.84,0.00054794,120]
[399211256,1766171968640,-3872.22,0.00054794,120]
[399211257,1766171968668,-500.0,0.00054794,120]
[399211258,1766171968697,-500.0,0.00054794,120]
[399211259,1766171968723,-500.0,0.00054794,120]
[399211260,1766171968752,-1578.95,0.00054794,120]
[399211261,1766171968783,-27951.38,0.00054794,120]
[399211262,1766171968815,-10885.04,0.00054794,120]
[399211263,1766171968844,-177.07063881,0.00054794,120]
[399211264,1766171968873,-500.0,0.00054794,120]
[399211265,1766171968904,-500.0,0.00054794,120]
[399211266,1766171968933,-500.0,0.00054794,120]
[399211267,1766171968968,-500.0,0.00054794,120]
[399211268,1766171968998,-1793.54,0.00054794,120]
[399211269,1766171969030,-304.8752111,0.00054794,120]
[399211270,1766171969064,-3434.29,0.00054794,120]
[399211271,1766171969096,-500.0,0.00054794,120]
[399211272,1766171969129,-406.56970199,0.00054794,120]
[399211273,1766171969158,-500.0,0.00054794,120]
[399211274,1766171969188,-500.0,0.00054794,120]
[399211275,1766171969219,-500.0,0.00054794,120]
[399211276,1766171969248,-500.0,0.00054794,120]
[399211277,1766171969278,-1435.0,0.00054794,120]
[399211278,1766171969309,-500.0,0.00054794,120]
[399211279,1766171969425,-500.0,0.00054794,120]
[399211280,1766171969453,-500.0,0.00054794,120]
[399211281,1766171969481,-2397.42,0.00054794,120]
[399211282,1766171969508,-500.0,0.00054794,120]
[399211283,1766171969536,-1353.86,0.00054794,120]
[399211284,1766171969565,-500.0,0.00054794,120]
[399211285,1766171969593,-833.42,0.00054794,120]
[399211286,1766171969620,-500.0,0.00054794,120]
[399211287,1766171969648,-500.0,0.00054794,120]
[399211288,1766171969676,-504.12701475,0.00054794,120]
[399211289,1766171969703,-500.0,0.00054794,120]
[399211290,1766171969730,-500.0,0.00054794,120]
[399211291,1766171969760,-500.0,0.00054794,120]
[399211292,1766171969789,-500.0,0.00054794,120]
[399211293,1766171969817,-500.0,0.00054794,120]
[399211294,1766171969845,-500.0,0.00054794,120]
[399211295,1766171969995,151.0,0.00032877,31]
[399211296,1766171970056,151.0,0.00032877,31]
[399211297,1766171970098,151.0,0.00032877,31]
[399211298,1766171970144,151.0,0.00032877,31]
[399211299,1766171970184,151.0,0.00032877,31]
[399211300,1766171970231,231.687926,0.00032877,31]
[399211301,1766172003849,500.0,0.00013273,2]
[399211302,1766172007599,500.0,0.00013699,2]
[399211303,1766172007665,730.48550188,0.00014247,2]
[399211304,1766172013806,-150.0,0.00016652,2]
[399211305,1766172013835,-500.0,0.00016653,2]
[399211306,1766172013864,-150.0,0.00016653,2]
[399211307,1766172013894,-500.0,0.00016653,2]
[399211308,1766172013924,-150.0,0.00016653,2]
[399211309,1766172013955,-663.0,0.00016653,2]
[399211310,1766172013984,-1942.24236331,0.00016726,2]
[399211311,1766172016751,-1889.52527338,0.00016726,2]
[399211312,1766172016782,-300.0,0.00016789,2]
[399211313,1766172016810,-1200.0,0.00016789,2]
[399211314,1766172016844,-500.0,0.0001679,2]
[399211315,1766172016874,-150.0,0.0001679,2]
[399211316,1766172017027,-500.0,0.0001679,2]
[399211317,1766172017060,-257.32998072,0.0001679,2]
[399211318,1766172017534,845.235334,0.00013699,2]
[399211319,1766172019858,-500.0,0.00016825,2]
[399211320,1766172019888,-500.0,0.00016825,2]
[399211321,1766172019917,-500.0,0.00016825,2]
[399211322,1766172019946,-500.0,0.00016825,2]
[399211323,1766172019976,-500.0,0.00016825,2]
[399211324,1766172020005,-500.0,0.00016825,2]
[399211325,1766172020035,-500.0,0.00016825,2]
[399211326,1766172020067,-500.0,0.00016825,2]
[399211327,1766172020097,-500.0,0.00016825,2]
[399211328,1766172020127,-500.0,0.00016825,2]
[399211329,1766172025069,-500.0,0.00016825,2]
[399211330,1766172025099,-500.0,0.00016825,2]
[399211331,1766172025132,-533.10425205,0.00016825,2]
[399211332,1766172025161,-650.0,0.00016825,2]
[399211333,1766172025191,-345.66739612,0.00016825,2]
[399211334,1766172025222,-500.0,0.00016825,2]
[399211335,1766172025255,-500.0,0.00016825,2]
[399211336,1766172025286,-500.0,0.00016825,2]
[399211337,1766172025315,-372.11756154,0.00016825,2]
[399211338,1766172025343,-500.0,0.00016825,2]
[399211339,1766172035606,-4139.26958089,0.00016657,2]
[399211340,1766172035634,-500.0,0.00016825,2]
[399211341,1766172035663,-221.47083822,0.00016825,2]
[399211342,1766172048379,-278.52916178,0.00016825,2]
[399211343,1766172048413,-500.0,0.00016825,2]
[399211344,1766172048442,-500.0,0.00016825,2]
[399211345,1766172048473,-500.0,0.00016825,2]
[399211346,1766172048500,-500.0,0.00016825,2]
[399211347,1766172048530,-500.0,0.00016825,2]
[399211348,1766172048559,-500.0,0.00016825,2]
[399211349,1766172048587,-623.60717262,0.00016825,2]
[399211350,1766172048614,-500.0,0.00016825,2]
[399211351,1766172048641,-500.0,0.00016825,2]
[399211352,1766172055745,-500.0,0.00016825,2]
[399211353,1766172055774,-500.0,0.00016825,2]
[399211354,1766172055803,-500.0,0.00016825,2]
[399211355,1766172055830,-500.0,0.00016825,2]
[399211356,1766172055857,-500.0,0.00016825,2]
[399211357,1766172055884,-500.0,0.00016825,2]
[399211358,1766172055914,-500.0,0.00016825,2]
[399211359,1766172055941,-500.0,0.00016825,2]
[399211360,1766172055969,-500.0,0.00016825,2]
[399211361,1766172055997,-498.75252796,0.00016825,2]
[399211362,1766172070654,500.0,0.00013273,2]
[399211363,1766172070721,500.0,0.00013821,2]
[399211364,1766172077708,500.0,0.00013273,2]
[399211365,1766172077739,172.63951897,0.00013821,2]
[399211366,1766172084644,502.58794908,0.00013273,2]
[399211367,1766172088254,500.0,0.00013273,2]
[399211368,1766172184983,174.31,0.0001,2]
[399211369,1766172187300,174.31,0.000102,2]